bitfinex/quotes_SOLUSD_20240606
["timestamp","ask_amount","ask_price","bid_price","bid_amount"]
[1717695285866,6.56,172.2,172.17,2.1489]
[1717695288872,6.56,172.19,172.17,2.1489]
[1717695290734,6.56,172.19,172.18,2.1489]
[1717695291044,6.56,172.2,172.18,2.1489]
[1717695293875,6.56,172.19,172.18,2.1489]
[1717695294368,6.56,172.19,172.17,2.1489]
[1717695294571,6.56,172.18,172.17,2.1489]
[1717695295646,6.56,172.18,172.09,51.6602]
[1717695296047,6.56,172.18,172.16,2.1491]
[1717695296568,6.56,172.17,172.1,6.56]
[1717695296750,6.56,172.17,172.11,45.0]
[1717695297158,6.56,172.17,172.14,2.1493]
[1717695297748,6.56,172.17,172.15,2.1492]
[1717695297949,6.3804,172.16,172.06,4.61165103]
[1717695298184,6.56,172.11,172.09,2.1499]
[1717695298674,6.56,172.11,172.1,2.1499]
[1717695298843,6.56,172.11,172.09,2.1499]
[1717695299246,6.56,172.11,172.1,2.1499]
[1717695299868,6.56,172.11,172.09,2.1499]
[1717695300657,6.3599,172.14,172.1,2.1499]
[1717695300960,6.56,172.11,172.1,2.1499]
[1717695301574,6.3599,172.14,172.1,2.1499]
[1717695301775,6.56,172.11,172.1,2.1499]
[1717695303766,6.56,172.11,172.05,26.56]
[1717695303767,6.56,172.11,172.09,2.1499]
[1717695303946,6.56,172.1,172.09,2.1499]
[1717695304269,6.56,172.11,172.09,2.1499]
[1717695306357,6.56,172.11,172.1,2.1499]
[1717695307076,6.2834,172.14,172.1,2.1499]
[1717695307381,6.56,172.11,172.1,2.1499]
[1717695307866,0.17,172.15,172.12,2.1496]
[1717695308068,4.2975,172.2,172.1,6.56]
[1717695308069,6.2834,172.2,172.1,6.56]
[1717695308375,6.56,172.16,172.11,20.0]
[1717695308850,6.56,172.15,172.13,2.1494]
[1717695311470,2.1488,172.19,172.13,2.1494]
[1717695311778,6.56,172.16,172.13,2.1494]
[1717695311970,8.7721,172.2,172.14,2.1494]
[1717695312174,0.34,172.19,172.14,2.1494]
[1717695312374,6.56,172.16,172.14,2.1494]
[1717695312761,6.56,172.16,172.13,2.1494]
[1717695314080,2.4888,172.19,172.13,2.1494]
[1717695314475,6.56,172.16,172.13,2.1494]
[1717695314887,2.4888,172.19,172.13,2.1494]
[1717695315064,6.56,172.16,172.13,2.1494]
[1717695315986,2.4888,172.19,172.13,2.1494]
[1717695316278,0.17,172.19,172.14,2.1494]
[1717695316465,6.56,172.15,172.13,2.1494]
[1717695317188,6.56,172.15,172.12,2.1495]
[1717695317398,6.56,172.15,172.13,2.1495]
[1717695318064,2.3187,172.19,172.13,2.1495]
[1717695318272,6.56,172.15,172.13,2.1495]
[1717695318917,2.3187,172.19,172.13,2.1495]
[1717695319089,6.56,172.15,172.13,2.1495]
[1717695321964,6.56,172.14,172.13,2.1495]
[1717695322486,6.56,172.14,172.12,2.1495]
[1717695322787,6.56,172.17,172.12,2.1495]
[1717695322788,6.56,172.13,172.12,2.1495]
[1717695325684,6.56,172.13,172.11,2.1497]
[1717695325887,6.56,172.12,172.11,2.1497]
[1717695328502,6.56,172.12,172.1,2.1498]
[1717695328701,6.56,172.11,172.1,2.1498]
[1717695331900,6.56,172.11,172.06,20.0]
[1717695331901,6.56,172.12,172.11,2.1497]
[1717695332194,28.3891,172.17,172.11,2.1497]
[1717695332492,6.56,172.12,172.11,2.1497]
[1717695334211,6.56,172.12,172.1,2.1498]
[1717695334998,6.56,172.11,172.1,2.1498]
[1717695341706,6.56,172.11,172.06,20.0]
[1717695341906,6.56,172.09,172.03,6.56]
[1717695342084,6.56,172.09,172.04,20.0]
[1717695343903,2.1493,172.15,172.04,20.0]
[1717695344101,6.56,172.09,172.04,20.0]
[1717695345006,6.56,172.08,172.02,20.0]
[1717695345179,6.56,172.08,172.03,45.0]
[1717695345380,6.56,172.08,172.04,20.0]
[1717695345598,0.34,172.14,172.04,20.0]
[1717695345599,6.56,172.09,172.04,20.0]
[1717695346826,6.56,172.1,172.04,20.0]
[1717695350992,6.56,172.1,172.04,19.5]
[1717695354817,0.34,172.14,172.04,19.5]
[1717695355005,18.5781,172.16,172.04,19.5]
[1717695355006,6.56,172.1,172.04,19.5]
[1717695355916,0.34,172.15,172.04,19.5]
[1717695356212,6.56,172.1,172.04,19.5]
[1717695356513,16.4289,172.16,172.06,6.56]
[1717695356715,16.4289,172.16,172.07,26.56]
[1717695357012,6.56,172.1,172.07,20.0]
[1717695357188,6.56,172.1,172.05,20.0]
[1717695358501,2.1493,172.15,172.05,20.0]
[1717695358699,6.56,172.11,172.04,26.56]
[1717695358906,0.34,172.14,172.04,26.56]
[1717695359102,0.34,172.14,172.05,6.56]
[1717695359299,6.56,172.11,172.06,20.0]
[1717695359710,6.56,172.11,172.05,20.0]
[1717695360421,0.17,172.13,172.05,20.0]
[1717695360594,6.56,172.11,172.05,20.0]
[1717695360918,6.56,172.11,172.05,26.56]
[1717695361914,6.56,172.11,172.05,20.0]
[1717695363790,0.17,172.13,172.05,20.0]
[1717695363994,6.56,172.11,172.05,20.0]
[1717695364196,6.3279,172.18,172.09,6.56]
[1717695364402,6.56,172.17,172.1,26.56]
[1717695364617,15.1881,172.2,172.11,6.56]
[1717695364812,6.56,172.16,172.12,20.0]
[1717695365217,6.56,172.16,172.1,20.0]
[1717695366414,6.56,172.16,172.09,6.56]
[1717695366615,6.56,172.15,172.1,20.0]
[1717695367736,17.3368,172.2,172.1,20.0]
[1717695367901,6.56,172.15,172.1,20.0]
[1717695368633,0.34,172.19,172.1,20.0]
[1717695368838,6.56,172.17,172.11,6.56]
[1717695369011,6.56,172.17,172.12,20.0]
[1717695370025,0.34,172.19,172.12,20.0]
[1717695370226,0.34,172.19,172.12,26.56]
[1717695370416,6.56,172.18,172.12,26.56]
[1717695372504,2.1485,172.21,172.12,26.56]
[1717695372719,6.56,172.18,172.12,26.56]
[1717695375633,0.34,172.2,172.12,26.56]
[1717695375816,6.56,172.18,172.12,26.56]
[1717695376216,2.4885,172.21,172.12,26.56]
[1717695376439,6.56,172.18,172.12,26.56]
[1717695376831,6.56,172.19,172.13,6.56]
[1717695377134,6.56,172.19,172.14,20.0]
[1717695378634,0.34,172.21,172.14,22.3233198]
[1717695378951,0.34,172.21,172.15,2.32318484]
[1717695379118,6.56,172.19,172.15,2.32318484]
[1717695379731,6.56,172.19,172.1,28.96896974]
[1717695380029,6.56,172.19,172.11,45.0]
[1717695380210,6.56,172.19,172.12,20.0]
[1717695380736,6.56,172.2,172.12,20.0]
[1717695380923,6.56,172.2,172.14,6.56]
[1717695381620,0.34,172.21,172.14,6.56]
[1717695381938,6.56,172.2,172.14,6.56]
[1717695382125,0.17,172.21,172.14,6.56]
[1717695382436,6.56,172.2,172.14,6.56]
[1717695384226,0.17,172.21,172.14,6.56]
[1717695384420,6.56,172.2,172.14,6.56]
[1717695386635,6.56,172.19,172.12,20.0]
[1717695386821,6.56,172.19,172.13,6.56]
[1717695387021,6.56,172.19,172.14,20.0]
[1717695387732,2.3185,172.21,172.14,20.0]
[1717695387934,6.56,172.19,172.14,20.0]
[1717695389443,6.56,172.18,172.14,20.0]
[1717695389642,6.56,172.18,172.12,26.56]
[1717695390439,6.56,172.18,172.12,20.0]
[1717695390636,2.3185,172.21,172.12,20.0]
[1717695390842,6.56,172.18,172.12,26.56]
[1717695391941,0.17,172.2,172.12,20.0]
[1717695392143,0.17,172.21,172.14,6.56]
[1717695392642,6.56,172.2,172.14,6.56]
[1717695393242,6.56,172.2,172.12,20.0]
[1717695393451,6.56,172.2,172.14,6.56]
[1717695393973,2.4884,172.22,172.14,6.56]
[1717695394153,6.56,172.2,172.14,6.56]
[1717695395241,6.56,172.2,172.12,20.0]
[1717695395640,6.56,172.2,172.14,6.56]
[1717695396441,6.56,172.16,172.12,20.0]
[1717695396657,6.56,172.15,172.11,20.0]
[1717695399341,6.56,172.16,172.11,20.0]
[1717695399646,6.56,172.17,172.11,26.56]
[1717695400446,0.17,172.19,172.11,26.56]
[1717695400642,6.56,172.17,172.11,26.56]
[1717695402449,0.34,172.19,172.11,26.56]
[1717695402645,6.56,172.17,172.11,26.56]
[1717695405246,0.34,172.2,172.11,26.56]
[1717695405455,6.56,172.17,172.11,26.56]
[1717695407238,2.4886,172.2,172.11,26.56]
[1717695407556,0.34,172.2,172.12,6.56]
[1717695407754,6.56,172.18,172.13,20.0]
[1717695407940,0.34,172.2,172.13,20.0]
[1717695408140,6.56,172.18,172.13,20.0]
[1717695408838,0.34,172.2,172.14,6.56]
[1717695409161,6.9,172.2,172.13,20.0]
[1717695409464,6.9,172.2,172.14,6.56]
[1717695409641,6.56,172.19,172.13,6.56]
[1717695411060,6.56,172.14,172.08,6.56]
[1717695412154,6.56,172.12,172.06,6.56]
[1717695412349,6.56,172.14,172.08,6.56]
[1717695412548,6.56,172.14,172.09,20.0]
[1717695412940,6.56,172.13,172.09,20.0]
[1717695413140,6.56,172.17,172.08,20.0]
[1717695413346,6.56,172.12,172.06,6.56]
[1717695413550,6.56,172.12,172.07,20.0]
[1717695415563,6.56,172.12,172.05,26.56]
[1717695415744,6.56,172.11,172.05,26.56]
[1717695416481,0.17,172.13,172.05,20.0]
[1717695416482,6.56,172.1,172.05,20.0]
[1717695417246,0.17,172.13,172.05,20.0]
[1717695417447,6.56,172.1,172.05,20.0]
[1717695419965,0.34,172.14,172.05,26.56]
[1717695420257,6.56,172.1,172.05,26.56]
[1717695420459,0.34,172.14,172.05,26.56]
[1717695420651,6.56,172.1,172.05,26.56]
[1717695422870,6.56,172.09,172.05,20.0]
[1717695424663,6.56,172.09,172.01,16.1266]
[1717695424866,0.34,172.14,172.02,51.56]
[1717695424867,6.56,172.08,172.02,51.56]
[1717695426177,6.56,172.08,172.03,20.0]
[1717695426352,6.56,172.07,172.03,20.0]
[1717695426754,6.56,172.08,172.03,20.0]
[1717695427567,6.56,172.07,172.03,20.0]
[1717695427750,6.56,172.07,172.02,20.0]
[1717695429060,6.56,172.07,172.01,26.56]
[1717695429866,2.1496,172.12,172.01,26.56]
[1717695430051,6.56,172.07,172.01,26.56]
[1717695431670,6.56,172.12,172.06,6.56]
[1717695432372,6.56,172.12,172.07,20.0]
[1717695432756,15.5057,172.14,172.04,20.0]
[1717695432956,0.17,172.13,172.05,6.56]
[1717695433157,6.56,172.11,172.06,20.0]
[1717695433551,6.56,172.12,172.06,20.0]
[1717695433975,17.6551,172.14,172.06,20.0]
[1717695434272,17.6551,172.14,172.02,45.0]
[1717695434273,6.56,172.09,172.03,26.56]
[1717695434775,6.56,172.08,172.02,45.0]
[1717695434961,6.56,172.08,172.02,51.56]
[1717695435161,6.56,172.08,171.99,6.1442]
[1717695435370,6.56,172.08,172.02,6.56]
[1717695435674,6.56,172.08,172.0,45.0]
[1717695435878,6.56,172.08,172.02,6.56]
[1717695436073,6.56,172.08,172.0,45.0]
[1717695436374,6.56,172.07,172.02,6.56]
[1717695436575,6.56,172.07,172.03,20.0]
[1717695436869,6.56,172.07,172.01,20.0]
[1717695437077,6.56,172.07,172.01,26.56]
[1717695437763,0.17,172.06,171.96,5.81]
[1717695437964,6.56,172.02,171.95,6.56]
[1717695438162,6.56,172.01,171.95,6.56]
[1717695438676,6.56,172.01,171.91,126.4011]
[1717695438856,6.56,172.01,171.95,6.56]
[1717695440376,6.56,172.01,171.96,20.0]
[1717695441563,6.56,172.0,171.96,20.0]
[1717695441763,6.56,171.99,171.95,20.0]
[1717695441958,8.504,172.04,171.93,6.56]
[1717695442175,6.56,171.99,171.94,20.0]
[1717695442763,0.34,172.03,171.94,20.0]
[1717695442975,6.56,172.0,171.94,20.0]
[1717695444575,6.56,172.0,171.93,6.56]
[1717695444854,6.56,171.99,171.94,20.0]
[1717695447475,0.34,172.03,171.94,20.0]
[1717695447666,6.56,171.99,171.94,20.0]
[1717695449063,6.56,171.98,171.94,20.0]
[1717695449280,6.56,171.98,171.93,20.0]
[1717695454692,6.56,171.98,171.92,20.0]
[1717695454992,6.56,171.98,171.93,45.0]
[1717695455299,17.4186,172.02,171.94,20.0]
[1717695455478,6.56,171.97,171.94,20.0]
[1717695455795,6.56,171.97,171.93,20.0]
[1717695457787,6.56,171.97,171.9,0.8140577]
[1717695458102,6.56,171.98,171.92,6.56]
[1717695458799,6.3869,172.01,171.93,6.56]
[1717695458800,6.56,171.99,171.93,6.56]
[1717695459006,6.56,171.98,171.92,6.56]
[1717695459174,6.56,171.98,171.93,45.0]
[1717695460184,6.56,171.98,171.92,6.56]
[1717695460385,6.56,171.98,171.9,0.8140577]
[1717695460588,6.56,171.98,171.92,6.56]
[1717695460784,6.56,171.97,171.91,6.56]
[1717695461002,6.56,171.97,171.92,65.0]
[1717695462080,6.56,172.0,171.94,6.56]
[1717695462399,6.56,171.99,171.96,2.1516]
[1717695463102,6.56,171.99,171.95,2.1517]
[1717695464096,6.56,171.99,171.92,65.0]
[1717695464299,6.56,171.99,171.93,6.56]
[1717695464505,6.56,171.98,171.92,71.56]
[1717695465196,6.56,171.97,171.92,65.0]
[1717695465401,6.56,171.97,171.95,2.1517]
[1717695465899,6.56,171.97,171.94,2.1518]
[1717695466201,6.56,171.96,171.94,2.1518]
[1717695466602,6.56,171.96,171.95,2.1517]
[1717695466806,6.56,171.97,171.94,2.1518]
[1717695466986,2.1513,171.99,171.95,2.1517]
[1717695467304,6.56,171.97,171.95,2.1517]
[1717695468711,8.156,171.99,171.95,2.1517]
[1717695468895,12.5648,171.99,171.95,2.1517]
[1717695470386,6.0048,171.99,171.95,2.1517]
[1717695470587,6.56,171.99,171.96,2.1516]
[1717695470988,2.1512,172.0,171.96,2.1516]
[1717695471296,6.56,172.0,171.96,2.1516]
[1717695471612,8.7112,172.0,171.96,2.1516]
[1717695472603,2.1511,172.01,171.96,2.1516]
[1717695472787,2.1511,172.0,171.9,120.8140577]
[1717695472996,2.1511,172.0,171.93,6.56]
[1717695472997,6.56,171.99,171.93,6.56]
[1717695473209,6.56,171.99,171.95,2.1516]
[1717695474986,6.56,171.99,171.96,2.1515]
[1717695475503,2.1511,172.0,171.96,2.1515]
[1717695475820,8.7111,172.0,171.96,2.1515]
[1717695476100,6.56,172.0,171.97,2.1515]
[1717695476304,8.7111,172.0,171.96,2.1516]
[1717695478288,10.7535,172.04,171.94,45.0]
[1717695478493,20.0,172.03,171.95,6.56]
[1717695478705,8.711,172.01,171.98,2.1513]
[1717695478904,8.711,172.01,171.97,2.1514]
[1717695480410,6.56,172.01,171.97,2.1514]
[1717695480711,8.7111,172.01,171.97,2.1514]
[1717695481418,2.1511,172.0,171.97,2.1514]
[1717695482493,26.4524,172.03,171.96,45.0]
[1717695482494,2.151,172.01,171.96,45.0]
[1717695482893,2.151,172.01,171.98,2.1513]
[1717695483111,2.151,172.01,171.97,2.1514]
[1717695483507,2.1511,172.0,171.97,2.1514]
[1717695484426,2.1511,172.0,171.96,45.0]
[1717695484427,2.1511,172.0,171.96,47.1515]
[1717695484595,2.1511,172.0,171.97,2.1514]
[1717695485915,2.1512,171.99,171.96,47.1516]
[1717695486618,6.56,172.01,171.96,45.0]
[1717695487002,2.1512,172.0,171.97,2.1515]
[1717695487717,2.1511,172.01,171.98,2.1513]
[1717695487901,8.7109,172.02,171.98,2.1513]
[1717695488097,2.151,172.01,171.98,2.1513]
[1717695488418,2.151,172.01,171.97,2.1514]
[1717695488712,6.56,172.0,171.96,45.0]
[1717695488900,6.56,172.0,171.97,2.1514]
[1717695489101,8.7111,172.0,171.96,47.1515]
[1717695489294,8.7111,172.0,171.97,2.1515]
[1717695489698,6.56,172.0,171.97,2.1515]
[1717695490109,8.7111,172.01,171.97,2.1515]
[1717695490295,2.1511,172.0,171.95,51.56]
[1717695490507,8.711,172.01,171.97,2.1514]
[1717695490820,2.1511,172.0,171.95,51.56]
[1717695491025,2.1511,172.0,171.96,2.1516]
[1717695491315,8.711,172.01,171.95,51.56]
[1717695491492,2.151,172.01,171.96,6.56]
[1717695491694,2.151,172.01,171.97,2.1514]
[1717695493426,2.151,172.01,171.96,8.7115]
[1717695493722,2.151,172.01,171.97,45.0]
[1717695494025,6.56,172.02,171.97,47.1514]
[1717695494192,12.9011,172.08,171.99,6.56]
[1717695494397,6.56,172.05,172.01,2.1509]
[1717695494998,6.56,172.05,172.02,2.1509]
[1717695495512,2.1503,172.07,172.0,51.56]
[1717695495819,6.56,172.07,172.01,6.56]
[1717695496019,6.56,172.07,172.02,45.0]
[1717695497325,2.1502,172.08,172.02,45.0]
[1717695497622,6.56,172.07,172.02,45.0]
[1717695499826,6.56,172.06,172.02,45.0]
[1717695500128,6.56,172.06,172.01,45.0]
[1717695503430,2.1502,172.08,172.01,45.0]
[1717695503605,6.1033,172.04,172.0,6.56]
[1717695503799,6.1033,172.04,171.96,6.56]
[1717695503800,2.1508,172.03,171.96,6.56]
[1717695504005,6.56,172.02,171.96,6.56]
[1717695504528,8.7108,172.03,171.97,6.56]
[1717695504737,6.56,172.02,171.96,6.56]
[1717695505028,6.56,172.02,171.97,45.0]
[1717695505422,6.56,172.02,171.99,2.1512]
[1717695506932,6.56,172.01,171.98,2.1513]
[1717695507137,6.56,172.01,171.99,2.1512]
[1717695509632,6.56,172.01,171.98,2.1514]
[1717695510425,6.56,172.01,171.97,45.0]
[1717695510623,6.56,172.01,171.99,2.1512]
[1717695511431,22.8807,172.04,172.0,2.1511]
[1717695511630,6.56,172.02,172.0,2.1511]
[1717695511806,6.2256,171.99,171.9,0.8140577]
[1717695512008,6.56,171.95,171.9,0.8140577]
[1717695512212,8.3769,171.99,171.95,2.1517]
[1717695512414,6.56,171.96,171.95,2.1517]
[1717695516631,12.6687,172.04,171.93,126.56]
[1717695516836,6.56,171.99,171.98,2.1513]
[1717695517231,6.56,171.99,171.94,45.0]
[1717695517437,6.56,171.99,171.97,2.1514]
[1717695517633,6.56,171.99,171.98,2.1514]
[1717695518239,6.56,171.99,171.97,2.1514]
[1717695518817,6.56,171.98,171.97,2.1514]
[1717695519221,2.151,172.01,171.97,2.1514]
[1717695519539,6.56,171.98,171.97,2.1514]
[1717695520848,2.1508,172.03,171.98,2.1513]
[1717695521138,6.2164,172.04,171.95,133.45868489]
[1717695521438,6.56,171.99,171.96,47.1516]
[1717695521642,6.56,172.0,171.97,2.1515]
[1717695521937,6.56,171.99,171.98,2.1514]
[1717695522135,6.56,171.99,171.96,45.0]
[1717695522338,6.56,171.99,171.98,2.1514]
[1717695522524,6.56,171.99,171.97,2.1514]
[1717695523347,6.56,171.99,171.98,2.1514]
[1717695523532,6.56,171.99,171.97,2.1514]
[1717695524240,6.56,171.99,171.97,8.2953]
[1717695524439,6.56,172.0,171.98,47.1513]
[1717695524925,6.56,172.0,171.98,45.0]
[1717695525127,6.56,172.0,171.98,47.1514]
[1717695525440,6.56,172.0,171.98,45.0]
[1717695525953,6.0647,172.14,171.99,126.0783]
[1717695526140,6.56,172.05,172.0,45.0]
[1717695526444,6.56,172.02,172.0,45.0]
[1717695527417,6.56,172.04,172.0,45.0]
[1717695527646,6.56,172.04,171.99,45.0]
[1717695528622,6.56,172.05,171.99,51.56]
[1717695529846,6.56,172.07,172.01,6.56]
[1717695530047,6.56,172.08,172.02,71.56]
[1717695530426,6.56,172.08,172.02,185.0]
[1717695530623,6.56,172.08,172.02,191.56]
[1717695530827,6.56,172.09,172.03,6.56]
[1717695531047,8.2141,172.14,172.04,65.0]
[1717695531243,8.2141,172.14,172.04,45.0]
[1717695531554,6.56,172.11,172.05,6.56]
[1717695531733,6.56,172.11,172.06,45.0]
[1717695532849,6.56,172.09,172.06,45.0]
[1717695533048,2.1495,172.13,172.06,45.0]
[1717695533447,6.56,172.09,172.06,45.0]
[1717695535832,13.1681,172.09,171.99,4.56934481]
[1717695536036,6.56,172.05,172.0,30.0]
[1717695537149,6.56,172.05,171.99,6.56]
[1717695537359,6.56,172.06,172.0,45.0]
[1717695537828,6.56,172.06,172.0,51.56]
[1717695539230,6.56,172.06,172.0,45.0]
[1717695539436,6.56,172.03,171.98,120.0]
[1717695539754,6.56,172.03,171.99,45.0]
[1717695539966,6.56,172.04,171.99,45.0]
[1717695543961,6.56,172.04,171.98,45.0]
[1717695546054,6.56,172.04,171.97,51.73]
[1717695546860,6.56,172.04,171.97,45.17]
[1717695547173,6.56,172.04,171.97,51.73]
[1717695547368,21.6162,172.03,171.95,4.57213581]
[1717695547569,21.6162,172.03,171.93,120.0]
[1717695547570,6.56,171.96,171.93,120.0]
[1717695548171,6.56,171.97,171.93,120.0]
[1717695548363,6.56,171.96,171.93,120.0]
[1717695549574,2.1511,172.01,171.94,51.56]
[1717695549881,6.56,172.0,171.94,51.56]
[1717695550668,6.56,171.99,171.94,45.0]
[1717695551672,6.56,171.98,171.94,45.0]
[1717695553980,6.56,171.97,171.94,45.0]
[1717695554658,2.1512,171.99,171.94,45.0]
[1717695554991,6.56,171.97,171.94,45.0]
[1717695555984,6.56,171.98,171.94,45.0]
[1717695556777,2.1512,171.99,171.94,45.0]
[1717695556978,6.56,171.97,171.94,45.0]
[1717695557988,8.3362,172.02,171.94,45.0]
[1717695558167,6.56,171.99,171.94,45.0]
[1717695558363,6.1853,172.02,171.94,45.0]
[1717695558576,6.56,171.99,171.94,45.0]
[1717695561980,6.56,171.98,171.94,45.0]
[1717695562956,2.1511,172.0,171.94,45.0]
[1717695563162,2.1511,172.01,171.94,45.0]
[1717695563378,6.56,171.99,171.94,45.0]
[1717695563582,2.1511,172.01,171.94,45.0]
[1717695563879,10.7539,172.03,171.94,45.0]
[1717695563880,6.56,171.99,171.94,45.0]
[1717695564255,2.1511,172.01,171.94,45.0]
[1717695564473,6.56,172.01,171.95,6.56]
[1717695564680,6.56,172.01,171.96,45.0]
[1717695564979,6.56,172.0,171.96,45.0]
[1717695565162,2.1509,172.02,171.95,45.0]
[1717695565364,6.56,172.0,171.95,45.0]
[1717695566175,6.56,172.0,171.95,165.0]
[1717695566377,2.1506,172.05,171.97,6.56]
[1717695566583,2.1506,172.05,171.98,45.0]
[1717695566584,6.56,172.03,171.98,45.0]
[1717695571973,6.56,172.02,171.98,45.0]
[1717695578186,6.56,172.02,171.97,120.0]
[1717695578187,6.56,171.99,171.97,5.97297296]
[1717695578386,6.56,171.99,171.95,120.0]
[1717695578792,6.56,171.97,171.95,120.0]
[1717695579597,6.56,171.97,171.96,45.0]
[1717695580103,6.56,171.98,171.96,45.0]
[1717695582080,6.56,171.97,171.96,45.0]
[1717695588611,2.1509,172.02,171.96,45.0]
[1717695588812,6.56,171.97,171.96,45.0]
[1717695589606,6.2595,171.98,171.87,120.0]
[1717695589780,6.56,171.92,171.87,120.0]
[1717695589981,6.56,171.91,171.87,120.0]
[1717695592287,6.56,171.91,171.85,257.6]
[1717695592490,6.56,171.91,171.86,20.0]
[1717695592697,6.56,171.91,171.9,0.3140577]
[1717695596010,2.1519,171.94,171.9,0.3140577]
[1717695596316,6.56,171.92,171.9,0.3140577]
[1717695596809,4.3034,171.96,171.9,0.3140577]
[1717695596810,10.5625,171.98,171.9,0.3140577]
[1717695597026,6.56,171.92,171.9,0.3140577]
[1717695600510,10.7577,171.97,171.9,0.3140577]
[1717695600511,6.56,171.97,171.91,6.56]
[1717695600809,6.56,171.97,171.92,45.0]
[1717695601013,2.1513,171.99,171.92,45.0]
[1717695601213,2.1512,172.0,171.92,165.0]
[1717695601794,6.56,171.97,171.92,165.0]
[1717695603889,6.56,171.96,171.92,165.0]
[1717695605211,6.56,171.93,171.9,0.3140577]
[1717695605400,6.56,171.92,171.9,0.3140577]
[1717695606911,2.1518,171.95,171.9,0.3140577]
[1717695607101,6.56,171.92,171.9,0.3140577]
[1717695613922,2.1522,171.91,171.9,0.3140577]
[1717695614116,8.7122,171.91,171.9,0.3140577]
[1717695616426,21.5919,171.91,171.9,0.3140577]
[1717695616627,25.8964,171.91,171.9,0.3140577]
[1717695617010,21.5919,171.91,171.9,0.3140577]
[1717695617916,32.3532,171.91,171.9,0.3140577]
[1717695618119,32.3532,171.91,171.78,120.0]
[1717695618120,8.6105,171.89,171.78,120.0]
[1717695618424,2.1528,171.87,171.78,120.0]
[1717695618627,6.56,171.82,171.78,120.0]
[1717695619417,2.1527,171.88,171.8,120.0]
[1717695619622,6.56,171.86,171.81,45.34]
[1717695619828,6.56,171.86,171.81,57.54447851]
[1717695620333,30.5449,171.9,171.81,57.54447851]
[1717695620334,26.24,171.9,171.81,57.54447851]
[1717695620532,6.56,171.9,171.84,126.56]
[1717695620725,6.56,171.9,171.85,64.73357851]
[1717695620928,6.56,171.91,171.85,64.73357851]